[Event "Titled Tuesday Blitz November 29 Early 2022"]
[White "Paravyan, David"]
[Black "Urazayev, Arystanbek"]
[WhiteFideId "4194985"]
[BlackFideId "13709810"]
[WhiteElo "2546"]
[BlackElo "2441"]
[Result "1-0"]
[Round "08"]
[TimeControl "180+1"]
[Date "2022.11.30"]
[WhiteClock "0:00:11"]
[BlackClock "0:00:08"]

1. e4 {[%clk 0:03:00]}  c5 {[%clk 0:03:00]} 2. Nf3 {[%clk 0:02:59]}  e6 {[%clk 0:03:00]} 3. d4 {[%clk 0:03:00]}  cxd4 {[%clk 0:03:01]} 4. Nxd4 {[%clk 0:03:00]}  a6 {[%clk 0:03:02]} 5. c3 {[%clk 0:03:00]}  Nc6 {[%clk 0:02:59]} 6. Nxc6 {[%clk 0:02:59]}  bxc6 {[%clk 0:02:59]} 7. Bd3 {[%clk 0:02:59]}  d5 {[%clk 0:02:59]} 8. O-O {[%clk 0:02:57]}  Nf6 {[%clk 0:03:00]} 9. exd5 {[%clk 0:02:48]}  cxd5 {[%clk 0:02:59]} 10. c4 {[%clk 0:02:48]}  Be7 {[%clk 0:02:59]} 11. Nc3 {[%clk 0:02:48]}  O-O {[%clk 0:02:59]} 12. cxd5 {[%clk 0:02:49]}  exd5 {[%clk 0:02:59]} 13. Bg5 {[%clk 0:02:48]}  Be6 {[%clk 0:02:56]} 14. Re1 {[%clk 0:02:48]}  h6 {[%clk 0:02:56]} 15. Bh4 {[%clk 0:02:47]}  a5 {[%clk 0:02:54]} 16. Nb5 {[%clk 0:02:45]}  Qb6 {[%clk 0:02:52]} 17. a4 {[%clk 0:02:37]}  Rfe8 {[%clk 0:02:47]} 18. Nd4 {[%clk 0:02:09]}  Bc5 {[%clk 0:02:40]} 19. Bxf6 {[%clk 0:01:53]}  gxf6 {[%clk 0:02:39]} 20. Nxe6 {[%clk 0:01:46]}  Rxe6 {[%clk 0:02:36]} 21. Qg4+ {[%clk 0:01:41]}  Kf8 {[%clk 0:02:37]} 22. Qf4 {[%clk 0:01:38]}  Qxb2 {[%clk 0:02:19]} 23. Reb1 {[%clk 0:01:15]}  Qd4 {[%clk 0:02:08]} 24. Qxd4 {[%clk 0:00:55]}  Bxd4 {[%clk 0:02:08]} 25. Ra2 {[%clk 0:00:56]}  Rae8 {[%clk 0:02:02]} 26. Kf1 {[%clk 0:00:53]}  Bc3 {[%clk 0:02:02]} 27. Re2 {[%clk 0:00:52]}  Rxe2 {[%clk 0:02:01]} 28. Bxe2 {[%clk 0:00:52]}  d4 {[%clk 0:02:01]} 29. g3 {[%clk 0:00:50]}  Kg7 {[%clk 0:01:54]} 30. Rb7 {[%clk 0:00:49]}  Rc8 {[%clk 0:01:33]} 31. Bh5 {[%clk 0:00:46]}  Rc5 {[%clk 0:00:53]} 32. Bxf7 {[%clk 0:00:41]}  f5 {[%clk 0:00:53]} 33. Bc4+ {[%clk 0:00:37]}  Kf6 {[%clk 0:00:50]} 34. Rb6+ {[%clk 0:00:37]}  Kg7 {[%clk 0:00:49]} 35. Bd3 {[%clk 0:00:37]}  Re5 {[%clk 0:00:48]} 36. Kg2 {[%clk 0:00:33]}  Bb4 {[%clk 0:00:34]} 37. Rb7+ {[%clk 0:00:33]}  Kf6 {[%clk 0:00:33]} 38. Kf3 {[%clk 0:00:29]}  Rd5 {[%clk 0:00:26]} 39. Rb6+ {[%clk 0:00:25]}  Kg7 {[%clk 0:00:25]} 40. Rb7+ {[%clk 0:00:23]}  Kf6 {[%clk 0:00:25]} 41. Kg2 {[%clk 0:00:20]}  Kg5 {[%clk 0:00:22]} 42. f4+ {[%clk 0:00:18]}  Kf6 {[%clk 0:00:22]} 43. Rb6+ {[%clk 0:00:18]}  Rd6 {[%clk 0:00:22]} 44. Rb5 {[%clk 0:00:18]}  Rc6 {[%clk 0:00:20]} 45. Rxf5+ {[%clk 0:00:18]}  Kg7 {[%clk 0:00:20]} 46. Kf3 {[%clk 0:00:17]}  Re6 {[%clk 0:00:18]} 47. Be4 {[%clk 0:00:15]}  Rd6 {[%clk 0:00:16]} 48. Ke2 {[%clk 0:00:14]}  Bc3 {[%clk 0:00:11]} 49. Rb5 {[%clk 0:00:15]}  Re6 {[%clk 0:00:08]} 50. Kd3 {[%clk 0:00:15]}  Re7 {[%clk 0:00:09]} 51. Rb6 {[%clk 0:00:15]}  Rc7 {[%clk 0:00:09]} 52. Rg6+ {[%clk 0:00:15]}  Kf8 {[%clk 0:00:09]} 53. Rxh6 {[%clk 0:00:15]}  Rc5 {[%clk 0:00:08]} 54. Rf6+ {[%clk 0:00:12]}  Kg7 {[%clk 0:00:08]} 55. Rf5 {[%clk 0:00:12]}  Rc7 {[%clk 0:00:08]} 56. Rb5 {[%clk 0:00:12]}  Ba1 {[%clk 0:00:08]} 57. Rb7 {[%clk 0:00:12]}  Rxb7 {[%clk 0:00:08]} 58. Bxb7 {[%clk 0:00:13]}  Bc3 {[%clk 0:00:08]} 59. Ba6 {[%clk 0:00:14]}  Kf6 {[%clk 0:00:08]} 60. Ke4 {[%clk 0:00:14]}  Kg6 {[%clk 0:00:08]} 61. Bd3 {[%clk 0:00:14]}  Kh5 {[%clk 0:00:08]} 62. Kf3 {[%clk 0:00:15]}  Kh6 {[%clk 0:00:08]} 63. h4 {[%clk 0:00:10]}  Be1 {[%clk 0:00:07]} 64. Kg2 {[%clk 0:00:10]}  Kh5 {[%clk 0:00:07]} 65. Kh3 {[%clk 0:00:11]}  Bd2 {[%clk 0:00:07]} 66. g4+ {[%clk 0:00:11]}  Kh6 {[%clk 0:00:07]} 67. g5+ {[%clk 0:00:11]}  Kh5 {[%clk 0:00:08]} 68. Be2+ {[%clk 0:00:10]}  Kg6 {[%clk 0:00:08]} 69. Kg4 {[%clk 0:00:10]}  Kg7 {[%clk 0:00:08]} 70. Bd3 {[%clk 0:00:11]} 1-0


[Site "https://www.chess.com"]

[Event "Titled Tuesday Blitz November 29 Early 2022"]
[White "Poltorak, Sebastian"]
[Black "Salinas Herrera, Pablo"]
[WhiteFideId "1199498"]
[BlackFideId "3407128"]
[WhiteElo "2196"]
[BlackElo "2557"]
[Result "1-0"]
[Round "08"]
[TimeControl "180+1"]
[Date "2022.11.30"]
[WhiteClock "0:00:10"]
[BlackClock "0:00:06"]

1. d4 {[%clk 0:03:00]}  d5 {[%clk 0:02:59]} 2. c4 {[%clk 0:03:01]}  c6 {[%clk 0:02:59]} 3. Nc3 {[%clk 0:02:59]}  Nf6 {[%clk 0:03:00]} 4. Nf3 {[%clk 0:02:59]}  e6 {[%clk 0:03:00]} 5. Bg5 {[%clk 0:03:00]}  Nbd7 {[%clk 0:03:00]} 6. e3 {[%clk 0:03:00]}  Qa5 {[%clk 0:03:01]} 7. cxd5 {[%clk 0:03:00]}  Nxd5 {[%clk 0:03:00]} 8. Rc1 {[%clk 0:02:50]}  Nxc3 {[%clk 0:02:59]} 9. bxc3 {[%clk 0:02:49]}  Ba3 {[%clk 0:02:54]} 10. Rc2 {[%clk 0:02:45]}  b6 {[%clk 0:02:52]} 11. Bd3 {[%clk 0:02:43]}  Ba6 {[%clk 0:02:52]} 12. O-O {[%clk 0:02:41]}  O-O {[%clk 0:02:51]} 13. Qe2 {[%clk 0:02:35]}  Bxd3 {[%clk 0:02:45]} 14. Qxd3 {[%clk 0:02:36]}  Rfe8 {[%clk 0:02:44]} 15. Bf4 {[%clk 0:02:27]}  h6 {[%clk 0:02:39]} 16. Rd1 {[%clk 0:02:23]}  Rac8 {[%clk 0:02:39]} 17. Ne5 {[%clk 0:02:21]}  Nxe5 {[%clk 0:02:38]} 18. Bxe5 {[%clk 0:02:21]}  Bf8 {[%clk 0:02:39]} 19. Rb1 {[%clk 0:02:14]}  Red8 {[%clk 0:02:36]} 20. Qc4 {[%clk 0:02:14]}  c5 {[%clk 0:02:31]} 21. Qb5 {[%clk 0:02:10]}  Qxb5 {[%clk 0:02:25]} 22. Rxb5 {[%clk 0:02:10]}  cxd4 {[%clk 0:02:25]} 23. Bxd4 {[%clk 0:02:07]}  f6 {[%clk 0:02:26]} 24. f4 {[%clk 0:02:00]}  Rc4 {[%clk 0:02:25]} 25. Kf2 {[%clk 0:01:45]}  Kf7 {[%clk 0:02:25]} 26. Ke2 {[%clk 0:01:39]}  Rdc8 {[%clk 0:02:21]} 27. Kd3 {[%clk 0:01:28]}  Be7 {[%clk 0:02:20]} 28. e4 {[%clk 0:01:24]}  Ra4 {[%clk 0:02:08]} 29. g3 {[%clk 0:01:19]}  Ke8 {[%clk 0:02:04]} 30. e5 {[%clk 0:01:18]}  f5 {[%clk 0:02:04]} 31. Rcb2 {[%clk 0:01:16]}  g5 {[%clk 0:02:01]} 32. Ke3 {[%clk 0:01:04]}  Kf7 {[%clk 0:01:58]} 33. Kf3 {[%clk 0:01:01]}  Rcc4 {[%clk 0:01:43]} 34. R5b3 {[%clk 0:00:57]}  Ke8 {[%clk 0:01:38]} 35. Rd2 {[%clk 0:00:54]}  gxf4 {[%clk 0:01:22]} 36. gxf4 {[%clk 0:00:53]}  Kf7 {[%clk 0:01:23]} 37. Ke3 {[%clk 0:00:50]}  Rc8 {[%clk 0:01:20]} 38. Rg2 {[%clk 0:00:48]}  Rg8 {[%clk 0:01:19]} 39. Rxg8 {[%clk 0:00:48]}  Kxg8 {[%clk 0:01:19]} 40. Rb2 {[%clk 0:00:48]}  Kf7 {[%clk 0:01:19]} 41. Rg2 {[%clk 0:00:47]}  b5 {[%clk 0:01:03]} 42. Rb2 {[%clk 0:00:45]}  a6 {[%clk 0:01:03]} 43. Kd3 {[%clk 0:00:44]}  Rc4 {[%clk 0:01:03]} 44. Rc2 {[%clk 0:00:42]}  Bf8 {[%clk 0:00:51]} 45. Rc1 {[%clk 0:00:38]}  h5 {[%clk 0:00:50]} 46. Rg1 {[%clk 0:00:35]}  Bh6 {[%clk 0:00:51]} 47. Ke3 {[%clk 0:00:35]}  Ra4 {[%clk 0:00:50]} 48. Rg2 {[%clk 0:00:35]}  Ra3 {[%clk 0:00:45]} 49. Rb2 {[%clk 0:00:32]}  Ke8 {[%clk 0:00:28]} 50. Rg2 {[%clk 0:00:22]}  Kf7 {[%clk 0:00:25]} 51. Rb2 {[%clk 0:00:22]}  Bf8 {[%clk 0:00:26]} 52. Kd3 {[%clk 0:00:21]}  Be7 {[%clk 0:00:20]} 53. Be3 {[%clk 0:00:18]}  Ke8 {[%clk 0:00:19]} 54. Rg2 {[%clk 0:00:17]}  b4 {[%clk 0:00:19]} 55. Bd4 {[%clk 0:00:11]}  bxc3 {[%clk 0:00:19]} 56. Bxc3 {[%clk 0:00:12]}  Bb4 {[%clk 0:00:18]} 57. Rc2 {[%clk 0:00:12]}  Kd7 {[%clk 0:00:13]} 58. Kc4 {[%clk 0:00:08]}  Bxc3 {[%clk 0:00:13]} 59. Rxc3 {[%clk 0:00:09]}  Ra4+ {[%clk 0:00:14]} 60. Kc5 {[%clk 0:00:09]}  Rxf4 {[%clk 0:00:15]} 61. Rd3+ {[%clk 0:00:09]}  Ke7 {[%clk 0:00:15]} 62. Rb3 {[%clk 0:00:10]}  Kf7 {[%clk 0:00:12]} 63. Rb7+ {[%clk 0:00:09]}  Kg6 {[%clk 0:00:13]} 64. Kd6 {[%clk 0:00:10]}  Ra4 {[%clk 0:00:09]} 65. Kxe6 {[%clk 0:00:09]}  Rxa2 {[%clk 0:00:10]} 66. Rb1 {[%clk 0:00:08]}  Rg2 {[%clk 0:00:09]} 67. Rb8 {[%clk 0:00:08]}  Rxh2 {[%clk 0:00:07]} 68. Rg8+ {[%clk 0:00:08]}  Kh7 {[%clk 0:00:07]} 69. Rg1 {[%clk 0:00:08]}  Rf2 {[%clk 0:00:06]} 70. Kf7 {[%clk 0:00:08]}  h4 {[%clk 0:00:04]} 71. e6 {[%clk 0:00:08]}  Re2 {[%clk 0:00:03]} 72. e7 {[%clk 0:00:08]}  Kh6 {[%clk 0:00:03]} 73. e8=Q {[%clk 0:00:06]}  Rxe8 {[%clk 0:00:04]} 74. Kxe8 {[%clk 0:00:07]}  f4 {[%clk 0:00:05]} 75. Kf7 {[%clk 0:00:08]}  f3 {[%clk 0:00:06]} 76. Kf6 {[%clk 0:00:08]}  Kh5 {[%clk 0:00:05]} 77. Kf5 {[%clk 0:00:09]}  h3 {[%clk 0:00:06]} 78. Kf4 {[%clk 0:00:09]}  f2 {[%clk 0:00:06]} 79. Rh1 {[%clk 0:00:08]}  Kh4 {[%clk 0:00:05]} 80. Kf3 {[%clk 0:00:09]}  a5 {[%clk 0:00:06]} 81. Kxf2 {[%clk 0:00:09]}  Kg4 {[%clk 0:00:06]} 82. Ra1 {[%clk 0:00:10]}  h2 {[%clk 0:00:06]} 83. Kg2 {[%clk 0:00:10]} 1-0


[Site "https://www.chess.com"]

[Event "Titled Tuesday Blitz November 29 Early 2022"]
[White "Postnikov, Daniil"]
[Black "Jumabayev, Rinat"]
[WhiteFideId "4166329"]
[BlackFideId "13702661"]
[WhiteElo "2261"]
[BlackElo "2561"]
[Result "0-1"]
[Round "08"]
[TimeControl "180+1"]
[Date "2022.11.30"]
[WhiteClock "0:00:01"]
[BlackClock "0:00:12"]

1. e4 {[%clk 0:02:59]}  c6 {[%clk 0:02:59]} 2. d4 {[%clk 0:02:59]}  d5 {[%clk 0:02:58]} 3. e5 {[%clk 0:02:59]}  c5 {[%clk 0:02:58]} 4. Nf3 {[%clk 0:02:58]}  cxd4 {[%clk 0:02:51]} 5. Qxd4 {[%clk 0:02:59]}  Nc6 {[%clk 0:02:51]} 6. Qf4 {[%clk 0:03:00]}  e6 {[%clk 0:02:49]} 7. Nc3 {[%clk 0:02:49]}  Nb4 {[%clk 0:02:46]} 8. Bd3 {[%clk 0:02:48]}  Bd7 {[%clk 0:02:46]} 9. O-O {[%clk 0:02:37]}  Rc8 {[%clk 0:02:43]} 10. h4 {[%clk 0:02:34]}  h6 {[%clk 0:02:43]} 11. h5 {[%clk 0:02:33]}  a6 {[%clk 0:02:33]} 12. Be3 {[%clk 0:02:05]}  Nxd3 {[%clk 0:02:28]} 13. cxd3 {[%clk 0:02:05]}  Ne7 {[%clk 0:02:29]} 14. Rac1 {[%clk 0:02:01]}  Nf5 {[%clk 0:02:06]} 15. Nd4 {[%clk 0:01:56]}  Nxd4 {[%clk 0:01:55]} 16. Bxd4 {[%clk 0:01:56]}  Be7 {[%clk 0:01:54]} 17. Qg4 {[%clk 0:01:52]}  O-O {[%clk 0:01:53]} 18. Rce1 {[%clk 0:01:44]}  Bc5 {[%clk 0:01:37]} 19. Bxc5 {[%clk 0:01:30]}  Rxc5 {[%clk 0:01:38]} 20. f4 {[%clk 0:01:30]}  Qb6 {[%clk 0:01:22]} 21. Rf2 {[%clk 0:01:20]}  Rfc8 {[%clk 0:01:23]} 22. Re3 {[%clk 0:00:52]}  Rxc3 {[%clk 0:01:00]} 23. Rg3 {[%clk 0:00:52]}  Rc1+ {[%clk 0:01:00]} 24. Kh2 {[%clk 0:00:52]}  g6 {[%clk 0:01:01]} 25. hxg6 {[%clk 0:00:52]}  f5 {[%clk 0:01:01]} 26. Qf3 {[%clk 0:00:18]}  R8c2 {[%clk 0:00:48]} 27. d4 {[%clk 0:00:10]}  Qxd4 {[%clk 0:00:43]} 28. Rf1 {[%clk 0:00:04]}  Rxf1 {[%clk 0:00:32]} 29. Qxf1 {[%clk 0:00:04]}  Bb5 {[%clk 0:00:24]} 30. Qe1 {[%clk 0:00:04]}  Qxf4 {[%clk 0:00:20]} 31. Qa5 {[%clk 0:00:04]}  Rc8 {[%clk 0:00:13]} 32. Qc3 {[%clk 0:00:01]}  Rxc3 {[%clk 0:00:12]} 0-1


[Site "https://www.chess.com"]

[Event "Titled Tuesday Blitz November 29 Early 2022"]
[White "Putnam, Liam"]
[Black "Reprintsev, Alexander"]
[WhiteFideId "30938279"]
[BlackFideId "14100541"]
[WhiteElo "2082"]
[BlackElo "2230"]
[Result "1/2-1/2"]
[Round "08"]
[TimeControl "180+1"]
[Date "2022.11.30"]
[WhiteClock "0:00:46"]
[BlackClock "0:00:10"]

1. e4 {[%clk 0:03:00]}  d5 {[%clk 0:02:59]} 2. exd5 {[%clk 0:03:01]}  Qxd5 {[%clk 0:02:58]} 3. Nc3 {[%clk 0:03:01]}  Qa5 {[%clk 0:02:57]} 4. d4 {[%clk 0:03:01]}  Nf6 {[%clk 0:02:58]} 5. Nf3 {[%clk 0:03:01]}  Nc6 {[%clk 0:02:58]} 6. Bd2 {[%clk 0:02:57]}  a6 {[%clk 0:02:58]} 7. Bc4 {[%clk 0:02:54]}  Qh5 {[%clk 0:02:57]} 8. d5 {[%clk 0:02:43]}  Ne5 {[%clk 0:02:52]} 9. Nxe5 {[%clk 0:02:34]}  Qxe5+ {[%clk 0:02:51]} 10. Be3 {[%clk 0:02:34]}  e6 {[%clk 0:02:43]} 11. O-O {[%clk 0:02:32]}  Bd6 {[%clk 0:02:42]} 12. g3 {[%clk 0:02:32]}  O-O {[%clk 0:02:35]} 13. Bf4 {[%clk 0:02:30]}  Qf5 {[%clk 0:02:33]} 14. Bxd6 {[%clk 0:02:30]}  cxd6 {[%clk 0:02:33]} 15. dxe6 {[%clk 0:02:30]}  Bxe6 {[%clk 0:02:30]} 16. Bxe6 {[%clk 0:02:31]}  Qxe6 {[%clk 0:02:29]} 17. Qf3 {[%clk 0:02:21]}  d5 {[%clk 0:02:26]} 18. Rfe1 {[%clk 0:02:20]}  Qc6 {[%clk 0:02:24]} 19. Rad1 {[%clk 0:02:20]}  Rad8 {[%clk 0:02:23]} 20. Rd4 {[%clk 0:02:19]}  Rd7 {[%clk 0:02:22]} 21. Red1 {[%clk 0:02:19]}  Rfd8 {[%clk 0:02:22]} 22. Kg2 {[%clk 0:02:19]}  h6 {[%clk 0:02:22]} 23. Qd3 {[%clk 0:02:18]}  b5 {[%clk 0:02:20]} 24. Ne2 {[%clk 0:02:18]}  Ne4 {[%clk 0:02:07]} 25. Nf4 {[%clk 0:02:15]}  Nc5 {[%clk 0:02:07]} 26. Qc3 {[%clk 0:02:14]}  Rd6 {[%clk 0:01:53]} 27. Qf3 {[%clk 0:02:07]}  Ne6 {[%clk 0:01:45]} 28. Nxe6 {[%clk 0:02:02]}  fxe6 {[%clk 0:01:45]} 29. Qe2 {[%clk 0:01:58]}  Re8 {[%clk 0:01:38]} 30. Qe5 {[%clk 0:01:57]}  Rd7 {[%clk 0:01:28]} 31. c3 {[%clk 0:01:57]}  Rf7 {[%clk 0:01:23]} 32. Re1 {[%clk 0:01:54]}  Ree7 {[%clk 0:01:14]} 33. f4 {[%clk 0:01:53]}  a5 {[%clk 0:01:07]} 34. a3 {[%clk 0:01:52]}  b4 {[%clk 0:00:55]} 35. axb4 {[%clk 0:01:51]}  axb4 {[%clk 0:00:55]} 36. Rxb4 {[%clk 0:01:51]}  d4+ {[%clk 0:00:54]} 37. Qe4 {[%clk 0:01:51]}  Qxe4+ {[%clk 0:00:52]} 38. Rxe4 {[%clk 0:01:52]}  dxc3 {[%clk 0:00:52]} 39. bxc3 {[%clk 0:01:53]}  Rc7 {[%clk 0:00:51]} 40. Re3 {[%clk 0:01:49]}  Rfd7 {[%clk 0:00:50]} 41. Rb6 {[%clk 0:01:35]}  Rd2+ {[%clk 0:00:48]} 42. Kh3 {[%clk 0:01:35]}  Rc2 {[%clk 0:00:49]} 43. Rbxe6 {[%clk 0:01:32]}  R2xc3 {[%clk 0:00:48]} 44. Re2 {[%clk 0:01:33]}  R3c6 {[%clk 0:00:41]} 45. Re8+ {[%clk 0:01:31]}  Kf7 {[%clk 0:00:40]} 46. Kg4 {[%clk 0:01:32]}  Rg6+ {[%clk 0:00:37]} 47. Kf3 {[%clk 0:01:31]}  Rd6 {[%clk 0:00:36]} 48. h4 {[%clk 0:01:26]}  Rc3+ {[%clk 0:00:31]} 49. R8e3 {[%clk 0:01:15]}  Rxe3+ {[%clk 0:00:31]} 50. Rxe3 {[%clk 0:01:16]}  h5 {[%clk 0:00:30]} 51. Re5 {[%clk 0:01:16]}  g6 {[%clk 0:00:30]} 52. Ra5 {[%clk 0:01:15]}  Rd3+ {[%clk 0:00:24]} 53. Kf2 {[%clk 0:01:15]}  Rb3 {[%clk 0:00:24]} 54. Ra7+ {[%clk 0:01:15]}  Kf6 {[%clk 0:00:24]} 55. Ra6+ {[%clk 0:01:16]}  Kf7 {[%clk 0:00:24]} 56. Ra5 {[%clk 0:01:14]}  Kf6 {[%clk 0:00:24]} 57. Re5 {[%clk 0:01:15]}  Ra3 {[%clk 0:00:22]} 58. Re3 {[%clk 0:01:15]}  Ra1 {[%clk 0:00:23]} 59. Kf3 {[%clk 0:01:14]}  Ra4 {[%clk 0:00:23]} 60. Rd3 {[%clk 0:01:14]}  Rb4 {[%clk 0:00:22]} 61. Rd6+ {[%clk 0:01:11]}  Kf5 {[%clk 0:00:20]} 62. Rd3 {[%clk 0:01:07]}  Kf6 {[%clk 0:00:20]} 63. Rc3 {[%clk 0:01:08]}  Ra4 {[%clk 0:00:20]} 64. g4 {[%clk 0:01:08]}  hxg4+ {[%clk 0:00:20]} 65. Kxg4 {[%clk 0:01:09]}  Ra6 {[%clk 0:00:20]} 66. Rb3 {[%clk 0:01:09]}  Rc6 {[%clk 0:00:20]} 67. Ra3 {[%clk 0:01:08]}  Rb6 {[%clk 0:00:20]} 68. Ra8 {[%clk 0:01:08]}  Rc6 {[%clk 0:00:18]} 69. Rf8+ {[%clk 0:01:07]}  Kg7 {[%clk 0:00:19]} 70. Re8 {[%clk 0:01:08]}  Kh6 {[%clk 0:00:18]} 71. Re7 {[%clk 0:01:07]}  Rc1 {[%clk 0:00:17]} 72. Re6 {[%clk 0:01:04]}  Rg1+ {[%clk 0:00:17]} 73. Kf3 {[%clk 0:01:05]}  Kg7 {[%clk 0:00:16]} 74. Rb6 {[%clk 0:01:02]}  Rh1 {[%clk 0:00:16]} 75. Kg3 {[%clk 0:01:00]}  Rg1+ {[%clk 0:00:16]} 76. Kh2 {[%clk 0:01:00]}  Rf1 {[%clk 0:00:16]} 77. Rb4 {[%clk 0:01:00]}  Rf3 {[%clk 0:00:16]} 78. Kg2 {[%clk 0:01:00]}  Rc3 {[%clk 0:00:15]} 79. Re4 {[%clk 0:00:59]}  Kh6 {[%clk 0:00:15]} 80. Re5 {[%clk 0:00:59]}  Rb3 {[%clk 0:00:15]} 81. Rg5 {[%clk 0:01:00]}  Rc3 {[%clk 0:00:15]} 82. Kf2 {[%clk 0:01:00]}  Rh3 {[%clk 0:00:14]} 83. Rg4 {[%clk 0:01:01]}  Kh5 {[%clk 0:00:13]} 84. Rg5+ {[%clk 0:01:01]}  Kh6 {[%clk 0:00:13]} 85. Re5 {[%clk 0:00:47]}  Rxh4 {[%clk 0:00:13]} 86. Kg3 {[%clk 0:00:48]}  Rh1 {[%clk 0:00:13]} 87. Re8 {[%clk 0:00:49]}  Rg1+ {[%clk 0:00:12]} 88. Kf2 {[%clk 0:00:48]}  Rb1 {[%clk 0:00:12]} 89. Kf3 {[%clk 0:00:48]}  Rb5 {[%clk 0:00:12]} 90. Kg4 {[%clk 0:00:48]}  Ra5 {[%clk 0:00:12]} 91. Re7 {[%clk 0:00:47]}  Rb5 {[%clk 0:00:11]} 92. Re8 {[%clk 0:00:48]}  Ra5 {[%clk 0:00:11]} 93. Rh8+ {[%clk 0:00:48]}  Kg7 {[%clk 0:00:11]} 94. Rh2 {[%clk 0:00:49]}  Kf6 {[%clk 0:00:10]} 95. Rd2 {[%clk 0:00:49]}  Kg7 {[%clk 0:00:11]} 96. Rd6 {[%clk 0:00:48]}  Kh6 {[%clk 0:00:10]} 97. Rc6 {[%clk 0:00:48]}  Rb5 {[%clk 0:00:10]} 98. Ra6 {[%clk 0:00:47]}  Rc5 {[%clk 0:00:10]} 99. Kf3 {[%clk 0:00:47]}  Rb5 {[%clk 0:00:10]} 100. Ke4 {[%clk 0:00:47]}  Rc5 {[%clk 0:00:10]} 101. Rd6 {[%clk 0:00:48]}  Rb5 {[%clk 0:00:10]} 102. Re6 {[%clk 0:00:48]}  Ra5 {[%clk 0:00:10]} 103. Re5 {[%clk 0:00:49]}  Ra4+ {[%clk 0:00:08]} 104. Kf3 {[%clk 0:00:49]}  Rb4 {[%clk 0:00:08]} 105. Re6 {[%clk 0:00:49]}  Kg7 {[%clk 0:00:09]} 106. Kg4 {[%clk 0:00:49]}  Rb5 {[%clk 0:00:09]} 107. Rd6 {[%clk 0:00:47]}  Rc5 {[%clk 0:00:09]} 108. Rb6 {[%clk 0:00:47]}  Ra5 {[%clk 0:00:09]} 109. Kf3 {[%clk 0:00:47]}  Rc5 {[%clk 0:00:09]} 110. Ke4 {[%clk 0:00:48]}  Ra5 {[%clk 0:00:10]} 111. Re6 {[%clk 0:00:48]}  Kf7 {[%clk 0:00:10]} 112. Rd6 {[%clk 0:00:48]}  Rb5 {[%clk 0:00:09]} 113. Rd2 {[%clk 0:00:45]}  Kf6 {[%clk 0:00:10]} 114. Rg2 {[%clk 0:00:45]}  Rb4+ {[%clk 0:00:09]} 115. Kf3 {[%clk 0:00:45]}  Kf5 {[%clk 0:00:08]} 116. Rg5+ {[%clk 0:00:45]}  Kf6 {[%clk 0:00:08]} 117. Kg4 {[%clk 0:00:46]}  Rb1 {[%clk 0:00:08]} 118. Rd5 {[%clk 0:00:46]}  Rg1+ {[%clk 0:00:08]} 119. Kf3 {[%clk 0:00:47]}  Rf1+ {[%clk 0:00:09]} 120. Ke4 {[%clk 0:00:47]}  Re1+ {[%clk 0:00:09]} 121. Kf3 {[%clk 0:00:47]}  Rf1+ {[%clk 0:00:09]} 122. Kg3 {[%clk 0:00:47]}  Rg1+ {[%clk 0:00:09]} 123. Kf2 {[%clk 0:00:48]}  Ra1 {[%clk 0:00:10]} 124. Re5 {[%clk 0:00:47]}  Ra3 {[%clk 0:00:10]} 125. Rc5 {[%clk 0:00:46]}  Rb3 {[%clk 0:00:10]} 1/2-1/2


[Site "https://www.chess.com"]

[Event "Titled Tuesday Blitz November 29 Early 2022"]
[White "Quinones Garcia, Santiago"]
[Black "Sai Han Thiha"]
[WhiteFideId "4408497"]
[BlackFideId "13012290"]
[WhiteElo "2249"]
[BlackElo "2023"]
[Result "0-1"]
[Round "08"]
[TimeControl "180+1"]
[Date "2022.11.30"]
[WhiteClock "0:01:53"]
[BlackClock "0:01:17"]

1. d4 {[%clk 0:02:57]}  Nf6 {[%clk 0:03:00]} 2. Nf3 {[%clk 0:02:58]}  e6 {[%clk 0:03:00]} 3. Bf4 {[%clk 0:02:59]}  c5 {[%clk 0:03:00]} 4. e3 {[%clk 0:02:59]}  cxd4 {[%clk 0:03:00]} 5. exd4 {[%clk 0:02:59]}  b6 {[%clk 0:03:00]} 6. Nbd2 {[%clk 0:02:58]}  Bb7 {[%clk 0:03:01]} 7. Be2 {[%clk 0:02:59]}  d6 {[%clk 0:03:01]} 8. O-O {[%clk 0:03:00]}  Be7 {[%clk 0:03:02]} 9. c4 {[%clk 0:03:00]}  O-O {[%clk 0:02:57]} 10. Rc1 {[%clk 0:03:00]}  d5 {[%clk 0:02:47]} 11. b3 {[%clk 0:02:59]}  Nc6 {[%clk 0:02:40]} 12. h3 {[%clk 0:02:58]}  dxc4 {[%clk 0:02:40]} 13. bxc4 {[%clk 0:02:58]}  Nxd4 {[%clk 0:02:40]} 14. Nxd4 {[%clk 0:02:52]}  Qxd4 {[%clk 0:02:41]} 15. Be3 {[%clk 0:02:53]}  Qh4 {[%clk 0:02:23]} 16. Qa4 {[%clk 0:02:48]}  Rfd8 {[%clk 0:02:17]} 17. Nf3 {[%clk 0:02:48]}  Qe4 {[%clk 0:02:08]} 18. Rfd1 {[%clk 0:02:46]}  Qc6 {[%clk 0:01:39]} 19. Qb3 {[%clk 0:02:43]}  h6 {[%clk 0:01:29]} 20. Bf1 {[%clk 0:02:42]}  Ne4 {[%clk 0:01:28]} 21. Nd4 {[%clk 0:02:29]}  Qc7 {[%clk 0:01:22]} 22. Nb5 {[%clk 0:02:29]}  Qe5 {[%clk 0:01:22]} 23. Bd4 {[%clk 0:02:26]}  Qf5 {[%clk 0:01:22]} 24. Nc3 {[%clk 0:01:53]}  Rxd4 {[%clk 0:01:17]} 0-1


[Site "https://www.chess.com"]

[Event "Titled Tuesday Blitz November 29 Early 2022"]
[White "Radjabov, Teimour"]
[Black "Fernandez De La Vara, Arnaldo"]
[WhiteFideId "13400924"]
[BlackFideId "3518388"]
[WhiteElo "2709"]
[BlackElo "2387"]
[Result "1-0"]
[Round "08"]
[TimeControl "180+1"]
[Date "2022.11.30"]
[WhiteClock "0:01:43"]
[BlackClock "0:00:01"]

1. Nf3 {[%clk 0:02:58]}  c5 {[%clk 0:03:00]} 2. c4 {[%clk 0:02:58]}  Nc6 {[%clk 0:03:00]} 3. Nc3 {[%clk 0:02:59]}  g6 {[%clk 0:03:00]} 4. g3 {[%clk 0:02:58]}  Bg7 {[%clk 0:03:00]} 5. Bg2 {[%clk 0:02:59]}  d6 {[%clk 0:03:00]} 6. O-O {[%clk 0:02:58]}  Nf6 {[%clk 0:03:01]} 7. Rb1 {[%clk 0:02:58]}  O-O {[%clk 0:02:55]} 8. a3 {[%clk 0:02:58]}  a5 {[%clk 0:02:56]} 9. Ne1 {[%clk 0:02:58]}  Ne8 {[%clk 0:02:26]} 10. Nc2 {[%clk 0:02:56]}  Nc7 {[%clk 0:02:26]} 11. b4 {[%clk 0:02:47]}  axb4 {[%clk 0:02:10]} 12. axb4 {[%clk 0:02:48]}  cxb4 {[%clk 0:02:09]} 13. Nxb4 {[%clk 0:02:49]}  Na5 {[%clk 0:02:10]} 14. Ncd5 {[%clk 0:02:39]}  Nxc4 {[%clk 0:02:05]} 15. d3 {[%clk 0:02:32]}  Na3 {[%clk 0:01:33]} 16. Nxc7 {[%clk 0:02:15]}  Nxb1 {[%clk 0:01:30]} 17. Nxa8 {[%clk 0:02:13]}  Nc3 {[%clk 0:01:23]} 18. Qd2 {[%clk 0:01:57]}  Bg4 {[%clk 0:01:06]} 19. Bb2 {[%clk 0:01:57]}  Nxe2+ {[%clk 0:00:53]} 20. Kh1 {[%clk 0:01:57]}  Qxa8 {[%clk 0:00:22]} 21. h3 {[%clk 0:01:57]}  Nxg3+ {[%clk 0:00:11]} 22. fxg3 {[%clk 0:01:56]}  Be6 {[%clk 0:00:06]} 23. Bxg7 {[%clk 0:01:55]}  Kxg7 {[%clk 0:00:07]} 24. Qb2+ {[%clk 0:01:56]}  Kg8 {[%clk 0:00:04]} 25. Nd5 {[%clk 0:01:45]}  Re8 {[%clk 0:00:01]} 26. Nc7 {[%clk 0:01:43]} 1-0


[Site "https://www.chess.com"]